lending/lending_fUSD_20260310
["ID","MTS","AMOUNT","RATE_DAILY","PERIOD"]
[408094981,1773141040551,-1000.0,0.00019521,2]
[408094982,1773141040560,-1000.0,0.00019521,2]
[408094983,1773141040569,-193.0,0.00019524,2]
[408094984,1773141040578,-151.0,0.00019526,2]
[408094985,1773141040587,-150.0,0.00019528,2]
[408094986,1773141040596,-150.0,0.00019528,2]
[408094987,1773141040606,-150.0,0.00019528,2]
[408094988,1773141040615,-150.0,0.00019528,2]
[408094989,1773141040625,-150.51586392,0.00019528,2]
[408094990,1773141040634,-150.0,0.00019528,2]
[408094991,1773141040644,-150.0,0.00019528,2]
[408094992,1773141040654,-168.0,0.00019551,2]
[408094993,1773141040664,-1656.70461228,0.0001957,2]
[408094994,1773141040675,-151.0,0.0001957,2]
[408094995,1773141040685,-3650.0,0.00019573,2]
[408094996,1773141040695,-16563.69717854,0.00019582,2]
[408094997,1773141040705,-227.62322685,0.00019583,2]
[408094998,1773141040715,-150.0,0.00019583,2]
[408094999,1773141040726,-231.17936295,0.00019583,2]
[408095000,1773141040736,-150.0,0.00019583,2]
[408095001,1773141040745,-150.0,0.00019583,2]
[408095002,1773141040754,-216.0,0.00019583,2]
[408095003,1773141040764,-150.0,0.00019583,2]
[408095004,1773141040773,-150.0,0.00019583,2]
[408095005,1773141040783,-150.0,0.00019583,2]
[408095006,1773141040792,-150.0,0.00019583,2]
[408095007,1773141040801,-150.0,0.00019583,2]
[408095008,1773141040810,-3505.0,0.00019583,2]
[408095009,1773141040819,-619.0,0.00019583,2]
[408095010,1773141040828,-1342.0,0.00019583,2]
[408095011,1773141040838,-1279.0,0.00019583,2]
[408095012,1773141040847,-150.0,0.00019589,4]
[408095013,1773141040856,-150.0,0.00019589,4]
[408095014,1773141040865,-2836.34,0.00019599,2]
[408095015,1773141040874,-389.25,0.000196,2]
[408095016,1773141040883,-389.26,0.000196,2]
[408095017,1773141040892,-454.13,0.000196,30]
[408095018,1773141040902,-454.13,0.000196,30]
[408095019,1773141040911,-454.13,0.000196,30]
[408095020,1773141040921,-454.14,0.000196,30]
[408095021,1773141040931,-1631.73720311,0.000196,5]
[408095022,1773141040940,-150.0,0.00019635,4]
[408095023,1773141040949,-150.0,0.00019638,2]
[408095024,1773141040959,-150.0,0.00019638,2]
[408095025,1773141040968,-150.0,0.00019658,4]
[408095026,1773141040977,-151.0,0.00019692,2]
[408095027,1773141040986,-151.0,0.00019692,2]
[408095028,1773141040995,-151.0,0.00019692,2]
[408095029,1773141041006,-151.0,0.00019692,2]
[408095030,1773141041015,-261.780764,0.00019692,2]
[408095031,1773141041024,-214.450257,0.00019692,2]
[408095032,1773141041033,-214.450257,0.00019692,2]
[408095033,1773141041042,-214.450257,0.00019692,2]
[408095034,1773141041052,-324.295827,0.00019692,2]
[408095035,1773141041062,-214.450257,0.00019692,2]
[408095036,1773141041072,-324.295827,0.00019692,2]
[408095037,1773141041082,-324.295827,0.00019692,2]
[408095038,1773141041092,-324.295827,0.00019692,2]
[408095039,1773141041101,-151.0,0.00019692,2]
[408095040,1773141041112,-151.0,0.00019692,2]
[408095041,1773141041121,-151.0,0.00019692,2]
[408095042,1773141041132,-151.0,0.00019692,2]
[408095043,1773141041141,-150.0,0.00019692,2]
[408095044,1773141041151,-150.0,0.00019692,2]
[408095045,1773141041160,-150.0,0.00019726,4]
[408095046,1773141041170,-150.0,0.00019726,4]
[408095047,1773141041180,-150.0,0.00019726,4]
[408095048,1773141041189,-787.0,0.00019726,2]
[408095049,1773141041199,-193.0,0.0001973,2]
[408095050,1773141041209,-321.0,0.00019741,2]
[408095051,1773141041218,-150.0,0.00019747,2]
[408095052,1773141041228,-150.0,0.00019747,2]
[408095053,1773141041238,-1000.0,0.00019748,2]
[408095054,1773141041249,-1000.0,0.00019748,2]
[408095055,1773141041259,-1000.0,0.00019748,2]
[408095056,1773141041268,-406.88761712,0.0001975,2]
[408095057,1773141041279,-406.88761711,0.0001977,2]
[408095058,1773141041288,-303.47017163,0.00019771,2]
[408095059,1773141041298,-1499.48,0.00019775,2]
[408095060,1773141041307,-500.0,0.00019781,7]
[408095061,1773141041317,-168.0,0.00019786,2]
[408095062,1773141041327,-406.88761711,0.00019791,2]
[408095063,1773141041336,-2605.5301,0.00019791,2]
[408095064,1773141041345,-150.0,0.00019795,4]
[408095065,1773141041354,-1000.0,0.000198,2]
[408095066,1773141041363,-250.0,0.00019802,2]
[408095067,1773141041372,-250.0,0.00019802,2]
[408095068,1773141041381,-406.88761711,0.00019811,2]
[408095069,1773141041390,-153.59002682,0.00019813,2]
[408095070,1773141041399,-150.0,0.00019817,4]
[408095071,1773141041409,-303.47017161,0.00019822,2]
[408095072,1773141041417,-406.88761711,0.00019831,2]
[408095073,1773141041430,-151.0,0.00019834,2]
[408095074,1773141041439,-500.0,0.00019836,2]
[408095075,1773141041448,-500.0,0.00019836,2]
[408095076,1773141041457,-2836.34,0.00019836,2]
[408095077,1773141041467,-546.0,0.00019836,2]
[408095078,1773141041477,-1328.65977178,0.00019837,2]
[408095079,1773141041486,-202512.7429968,0.00019837,2]
[408095080,1773141041497,-38768.9504295,0.00019837,2]
[408095081,1773141041509,-213.301194,0.00019837,2]
[408095082,1773141041518,-262.263984,0.00019837,2]
[408095083,1773141041527,-151.0,0.00019837,2]
[408095084,1773141041537,-196.012472,0.00019837,2]
[408095085,1773141041546,-196.012472,0.00019837,2]
[408095086,1773141041555,-196.012472,0.00019837,2]
[408095087,1773141041564,-196.012472,0.00019837,2]
[408095088,1773141041573,-151.0,0.00019837,2]
[408095089,1773141041582,-151.0,0.00019837,2]
[408095090,1773141041591,-151.0,0.00019837,2]
[408095091,1773141041599,-151.0,0.00019837,2]
[408095092,1773141041608,-151.0,0.00019837,2]
[408095093,1773141041617,-151.0,0.00019837,2]
[408095094,1773141041626,-214.450257,0.00019837,2]
[408095095,1773141041634,-214.450257,0.00019837,2]
[408095096,1773141041644,-214.450257,0.00019837,2]
[408095097,1773141041653,-324.295827,0.00019837,2]
[408095098,1773141041662,-214.450264,0.00019837,2]
[408095099,1773141041671,-324.295827,0.00019837,2]
[408095100,1773141041679,-324.295827,0.00019837,2]
[408095101,1773141041688,-324.29583,0.00019837,2]
[408095102,1773141041697,-151.0,0.00019837,2]
[408095103,1773141041705,-192.488579,0.00019837,2]
[408095104,1773141041714,-151.0,0.00019837,2]
[408095105,1773141041723,-151.0,0.00019837,2]
[408095106,1773141041732,-157.801202,0.00019837,2]
[408095107,1773141041741,-157.801202,0.00019837,2]
[408095108,1773141041750,-157.801202,0.00019837,2]
[408095109,1773141041758,-157.801202,0.00019837,2]
[408095110,1773141041768,-172.02553,0.00019837,2]
[408095111,1773141041777,-386.511012,0.00019837,2]
[408095112,1773141041786,-172.02553,0.00019837,2]
[408095113,1773141041795,-386.511012,0.00019837,2]
[408095114,1773141041804,-172.02553,0.00019837,2]
[408095115,1773141041813,-172.02553,0.00019837,2]
[408095116,1773141041824,-151.0,0.00019837,2]
[408095117,1773141041833,-240.896341,0.00019837,2]
[408095118,1773141041842,-240.896341,0.00019837,2]
[408095119,1773141041851,-240.896341,0.00019837,2]
[408095120,1773141041859,-240.896345,0.00019837,2]
[408095121,1773141041868,-151.0,0.00019837,2]
[408095122,1773141041877,-151.0,0.00019837,2]
[408095123,1773141041886,-151.0,0.00019837,2]
[408095124,1773141041894,-719.71215,0.00019837,2]
[408095125,1773141041903,-719.71215,0.00019837,2]
[408095126,1773141041912,-719.71215,0.00019837,2]
[408095127,1773141041920,-719.712148,0.00019837,2]
[408095128,1773141041929,-151.0,0.00019837,2]
[408095129,1773141041938,-151.0,0.00019837,2]
[408095130,1773141041947,-151.0,0.00019837,2]
[408095131,1773141041956,-151.0,0.00019837,2]
[408095132,1773141041964,-151.0,0.00019837,2]
[408095133,1773141041973,-151.0,0.00019837,2]
[408095134,1773141041982,-151.0,0.00019837,2]
[408095135,1773141041991,-246.887004,0.00019837,2]
[408095136,1773141041999,-1088.157112,0.00019837,2]
[408095137,1773141042009,-1088.157112,0.00019837,2]
[408095138,1773141042018,-1088.157112,0.00019837,2]
[408095139,1773141042026,-1088.157112,0.00019837,2]
[408095140,1773141042035,-166.66,0.00019846,2]
[408095141,1773141042044,-200.0,0.0001985,2]
[408095142,1773141042053,-252.9436608,0.0001985,2]
[408095143,1773141042061,-406.88761711,0.00019852,2]
[408095144,1773141042070,-150.0,0.00019863,4]
[408095145,1773141042079,-150.0,0.00019863,4]
[408095146,1773141042088,-6683.0,0.00019863,2]
[408095147,1773141042097,-508.0,0.00019864,4]
[408095148,1773141042106,-7498.0,0.00019865,2]
[408095149,1773141042115,-1499.48,0.00019868,2]
[408095150,1773141042124,-1523.0,0.00019869,2]
[408095151,1773141042132,-2147.50052184,0.0001987,2]
[408095152,1773141042141,-404.38696772,0.0001987,2]
[408095153,1773141042150,-500.0,0.00019871,2]
[408095154,1773141042159,-583.40097691,0.00019871,2]
[408095155,1773141042168,-500.0,0.00019871,2]
[408095156,1773141042177,-500.0,0.00019871,2]
[408095157,1773141042185,-513.30795353,0.00019871,2]
[408095158,1773141042194,-500.0,0.00019871,2]
[408095159,1773141042203,-500.0,0.00019871,2]
[408095160,1773141042213,-500.0,0.00019871,2]
[408095161,1773141042222,-16563.69717854,0.00019871,2]
[408095162,1773141042231,-2147.50052183,0.00019871,2]
[408095163,1773141042241,-404.3869677,0.00019871,2]
[408095164,1773141042251,-406.88761711,0.00019872,2]
[408095165,1773141042260,-2147.50052183,0.00019872,2]
[408095166,1773141042271,-303.47017161,0.00019872,2]
[408095167,1773141042282,-501.01772395,0.00019873,2]
[408095168,1773141042292,-500.0,0.00019873,2]
[408095169,1773141042301,-500.0,0.00019873,2]
[408095170,1773141042311,-500.0,0.00019873,2]
[408095171,1773141042319,-25000.0,0.00019874,3]
[408095173,1773141042328,-168.0,0.00019874,2]
[408095175,1773141042338,-6832.0,0.00019881,2]
[408095177,1773141042351,-25000.0,0.00019882,3]
[408095178,1773141042360,-151.0,0.00019891,2]
[408095179,1773141042369,-151.0,0.00019891,2]
[408095180,1773141042379,-151.0,0.00019891,2]
[408095181,1773141042390,-151.0,0.00019891,2]
[408095182,1773141042401,-1088.157112,0.00019891,2]
[408095183,1773141042411,-1088.157112,0.00019891,2]
[408095184,1773141042421,-1088.157112,0.00019891,2]
[408095185,1773141042434,-1088.157102,0.00019891,2]
[408095186,1773141042443,-25000.0,0.00019891,3]
[408095187,1773141042454,-2836.34,0.00019899,2]
[408095188,1773141042463,-25000.0,0.000199,3]
[408095189,1773141042475,-541.97,0.000199,7]
[408095190,1773141042487,-10454.97121763,0.000199,3]
[408095191,1773141042497,-5567.68340669,0.000199,3]
[408095192,1773141042508,-196.012472,0.000199,2]
[408095193,1773141042518,-196.012472,0.000199,2]
[408095194,1773141042528,-196.012472,0.000199,2]
[408095195,1773141042537,-196.012472,0.000199,2]
[408095196,1773141042546,-151.0,0.000199,2]
[408095197,1773141042555,-151.0,0.000199,2]
[408095198,1773141042565,-157.801202,0.000199,2]
[408095199,1773141042574,-157.801202,0.000199,2]
[408095200,1773141042583,-157.801202,0.000199,2]
[408095201,1773141042592,-157.80121,0.000199,2]
[408095202,1773141042602,-172.02553,0.000199,2]
[408095203,1773141042612,-386.511012,0.000199,2]
[408095204,1773141042621,-386.511012,0.000199,2]
[408095205,1773141042631,-386.511007,0.000199,2]
[408095206,1773141042640,-172.02553,0.000199,2]
[408095207,1773141042649,-172.02553,0.000199,2]
[408095208,1773141042658,-172.025534,0.000199,2]
[408095209,1773141042668,-151.0,0.000199,2]
[408095210,1773141042677,-1216.45,0.00019902,2]
[408095211,1773141042687,-150.0,0.00019932,4]
[408095212,1773141042696,-463.0,0.00019945,2]
[408095213,1773141042705,-700.0,0.0001995,2]
[408095214,1773141042714,-362.0,0.00019961,5]
[408095215,1773141042724,-1110.0,0.00019961,5]
[408095216,1773141042733,-3292.0,0.00019964,2]
[408095217,1773141042742,-500.0,0.00019966,2]
[408095218,1773141042751,-500.0,0.00019968,2]
[408095219,1773141042761,-500.0,0.00019968,2]
[408095220,1773141042770,-500.0,0.00019968,2]
[408095221,1773141042780,-150.0,0.00019968,2]
[408095222,1773141042790,-500.0,0.00019968,2]
[408095223,1773141042799,-500.0,0.00019968,2]
[408095224,1773141042809,-155.0,0.00019968,2]
[408095225,1773141042818,-1499.48,0.00019968,2]
[408095227,1773141042827,-1499.48,0.00019968,2]
[408095228,1773141042836,-1499.48,0.00019968,2]
[408095229,1773141042846,-1499.48,0.00019968,2]
[408095230,1773141042855,-1499.48,0.00019968,2]
[408095231,1773141042865,-2836.34,0.00019968,2]
[408095232,1773141042875,-2836.34,0.00019968,2]
[408095233,1773141042887,-2836.34,0.00019968,2]
[408095234,1773141042897,-2836.34,0.00019968,2]
[408095235,1773141042906,-2357.29216651,0.00019969,2]
[408095236,1773141042916,-15467.74,0.00019969,2]
[408095237,1773141042925,-15467.74,0.00019969,2]
[408095238,1773141042935,-15467.74,0.00019969,2]
[408095239,1773141042944,-15467.74,0.00019969,2]
[408095240,1773141042954,-9530.66611496,0.00019969,2]
[408095244,1773141043344,-4293.41839997,0.00019969,2]
[408095245,1773141043355,-558.69299275,0.00019969,2]
[408095246,1773141043369,-527.21780492,0.00019969,2]
[408095247,1773141043380,-557.7446874,0.00019969,2]
[408095248,1773141043389,-500.0,0.00019969,2]
[408095249,1773141043398,-587.80969885,0.00019969,2]
[408095250,1773141043407,-644.3032175,0.00019969,2]
[408095251,1773141043416,-500.0,0.00019969,2]
[408095252,1773141043426,-500.0,0.00019969,2]
[408095253,1773141043439,-500.0,0.00019969,2]
[408095254,1773141043449,-500.0,0.00019969,2]
[408095255,1773141043458,-500.0,0.00019969,2]
[408095256,1773141043469,-500.0,0.00019969,2]
[408095257,1773141043478,-500.0,0.00019969,2]
[408095258,1773141043487,-500.0,0.00019969,2]
[408095259,1773141043497,-254.04239625,0.00019969,2]
[408095260,1773141043519,-245.95760375,0.00019969,2]
[408095261,1773141043528,-500.0,0.00019969,2]
[408095262,1773141043538,-101.04239625,0.00019969,2]
[408095263,1773141043606,-491.42396994,0.00019172,2]
[408095264,1773141043625,-1969.57603006,0.00019172,2]
[408095265,1773141043635,-151.0,0.00019178,2]
[408095266,1773141043644,-465.67938703,0.00019969,2]
[408095267,1773141043653,-500.0,0.00019969,2]
[408095268,1773141043663,-500.0,0.00019969,2]
[408095269,1773141043672,-500.0,0.00019969,2]
[408095270,1773141043681,-500.0,0.00019969,2]
[408095271,1773141043691,-500.0,0.00019969,2]
[408095272,1773141043700,-500.0,0.00019969,2]
[408095273,1773141043709,-550.06322918,0.00019969,2]
[408095274,1773141043718,-500.0,0.00019969,2]
[408095275,1773141043728,-500.0,0.00019969,2]
[408095276,1773141043737,-500.0,0.00019969,2]
[408095277,1773141043746,-500.0,0.00019969,2]
[408095278,1773141043756,-500.0,0.00019969,2]
[408095279,1773141043766,-500.0,0.00019969,2]
[408095280,1773141043775,-500.0,0.00019969,2]
[408095281,1773141043784,-500.0,0.00019969,2]
[408095282,1773141043793,-500.0,0.00019969,2]
[408095283,1773141043805,-500.0,0.00019969,2]
[408095284,1773141043814,-500.0,0.00019969,2]
[408095285,1773141043823,-500.0,0.00019969,2]
[408095286,1773141043832,-500.0,0.00019969,2]
[408095287,1773141043842,-500.0,0.00019969,2]
[408095288,1773141043852,-500.0,0.00019969,2]
[408095289,1773141043862,-591.91192692,0.00019969,2]
[408095290,1773141043872,-573.59,0.00019969,2]
[408095291,1773141043883,-573.59,0.00019969,2]
[408095292,1773141043892,-573.59,0.00019969,2]
[408095293,1773141043902,-573.59,0.00019969,2]
[408095294,1773141043911,-500.0,0.00019969,2]
[408095295,1773141043920,-573.59,0.00019969,2]
[408095296,1773141043929,-500.0,0.00019969,2]
[408095297,1773141043939,-573.59,0.00019969,2]
[408095298,1773141043948,-500.0,0.00019969,2]
[408095299,1773141043958,-573.59,0.00019969,2]
[408095300,1773141043967,-500.0,0.00019969,2]
[408095301,1773141043976,-573.59,0.00019969,2]
[408095302,1773141043985,-500.0,0.00019969,2]
[408095303,1773141043994,-573.59,0.00019969,2]
[408095304,1773141044006,-500.0,0.00019969,2]
[408095305,1773141044015,-500.0,0.00019969,2]
[408095306,1773141044024,-500.0,0.00019969,2]
[408095307,1773141044033,-500.0,0.00019969,2]
[408095308,1773141044042,-500.0,0.00019969,2]
[408095309,1773141044051,-500.0,0.00019969,2]
[408095310,1773141044060,-500.0,0.00019969,2]
[408095311,1773141044069,-500.0,0.00019969,2]
[408095312,1773141044078,-500.0,0.00019969,2]
[408095313,1773141044087,-500.0,0.00019969,2]
[408095314,1773141044097,-500.0,0.00019969,2]
[408095315,1773141044106,-500.0,0.00019969,2]
[408095316,1773141044115,-500.0,0.00019969,2]
[408095317,1773141044124,-414.2200738,0.00019969,2]
[408095318,1773141044133,-500.0,0.00019969,2]
[408095319,1773141044142,-500.0,0.00019969,2]
[408095320,1773141044151,-454.42207566,0.00019969,2]
[408095321,1773141044160,-500.0,0.00019969,2]
[408095322,1773141044169,-500.0,0.00019969,2]
[408095323,1773141044178,-500.0,0.00019969,2]
[408095324,1773141044187,-500.0,0.00019969,2]
[408095325,1773141044196,-500.0,0.00019969,2]
[408095326,1773141044206,-500.0,0.00019969,2]
[408095327,1773141044215,-546.83455688,0.00019969,2]
[408095328,1773141044224,-500.0,0.00019969,2]
[408095329,1773141044233,-500.0,0.00019969,2]
[408095330,1773141044242,-500.0,0.00019969,2]
[408095331,1773141044251,-500.0,0.00019969,2]
[408095332,1773141044260,-500.0,0.00019969,2]
[408095333,1773141044270,-156.9171682,0.00019969,2]
[408095334,1773141044279,-500.0,0.00019969,2]
[408095335,1773141044288,-500.0,0.00019969,2]
[408095336,1773141044297,-500.0,0.00019969,2]
[408095337,1773141044307,-500.0,0.00019969,2]
[408095338,1773141044316,-500.0,0.00019969,2]
[408095339,1773141044325,-500.0,0.00019969,2]
[408095340,1773141044334,-500.0,0.00019969,2]
[408095341,1773141044343,-500.0,0.00019969,2]
[408095342,1773141044352,-500.0,0.00019969,2]
[408095343,1773141044361,-500.0,0.00019969,2]
[408095344,1773141044371,-500.0,0.00019969,2]
[408095345,1773141044379,-500.0,0.00019969,2]
[408095346,1773141044389,-500.0,0.00019969,2]
[408095347,1773141044398,-500.0,0.00019969,2]
[408095348,1773141044407,-597.96566415,0.00019969,2]
[408095349,1773141044416,-500.0,0.00019969,2]
[408095350,1773141044426,-500.0,0.00019969,2]
[408095351,1773141044440,-500.0,0.00019969,2]
[408095352,1773141044449,-500.0,0.00019969,2]
[408095353,1773141044459,-500.0,0.00019969,2]
[408095354,1773141044468,-500.0,0.00019969,2]
[408095355,1773141044479,-500.0,0.00019969,2]
[408095356,1773141044489,-589.26,0.00019969,2]
[408095357,1773141044499,-500.0,0.00019969,2]
[408095358,1773141044510,-500.0,0.00019969,2]
[408095359,1773141044519,-500.0,0.00019969,2]
[408095360,1773141044528,-500.0,0.00019969,2]
[408095361,1773141044538,-500.0,0.00019969,2]
[408095362,1773141044547,-500.0,0.00019969,2]
[408095363,1773141044556,-615.70219665,0.00019969,2]
[408095364,1773141044565,-500.0,0.00019969,2]
[408095365,1773141044575,-500.0,0.00019969,2]
[408095366,1773141044584,-500.0,0.00019969,2]
[408095367,1773141044593,-500.0,0.00019969,2]
[408095368,1773141044603,-500.0,0.00019969,2]
[408095369,1773141044612,-500.0,0.00019969,2]
[408095370,1773141044621,-500.0,0.00019969,2]
[408095371,1773141044630,-500.0,0.00019969,2]
[408095372,1773141044640,-500.0,0.00019969,2]
[408095373,1773141044649,-500.0,0.00019969,2]
[408095374,1773141044659,-500.0,0.00019969,2]
[408095375,1773141044668,-500.0,0.00019969,2]
[408095376,1773141044679,-500.0,0.00019969,2]
[408095377,1773141044691,-500.0,0.00019969,2]
[408095378,1773141044701,-500.0,0.00019969,2]
[408095379,1773141044710,-500.0,0.00019969,2]
[408095380,1773141044720,-500.0,0.00019969,2]
[408095381,1773141044731,-500.0,0.00019969,2]
[408095382,1773141044740,-500.0,0.00019969,2]
[408095383,1773141044750,-205.38609251,0.00019969,2]
[408095384,1773141044759,-500.0,0.00019969,2]
[408095385,1773141044769,-500.0,0.00019969,2]
[408095386,1773141044779,-500.0,0.00019969,2]
[408095387,1773141044788,-500.0,0.00019969,2]
[408095388,1773141044797,-500.0,0.00019969,2]
[408095389,1773141044806,-500.0,0.00019969,2]
[408095390,1773141044815,-560.53549009,0.00019969,2]
[408095391,1773141044824,-500.0,0.00019969,2]
[408095392,1773141044833,-500.0,0.00019969,2]
[408095393,1773141044843,-500.0,0.00019969,2]
[408095394,1773141044854,-500.0,0.00019969,2]
[408095395,1773141044864,-586.26388644,0.00019969,2]
[408095396,1773141044873,-500.0,0.00019969,2]
[408095397,1773141044884,-500.0,0.00019969,2]
[408095398,1773141044895,-500.0,0.00019969,2]
[408095399,1773141044906,-500.0,0.00019969,2]
[408095400,1773141044916,-500.0,0.00019969,2]
[408095401,1773141044925,-500.0,0.00019969,2]
[408095402,1773141044935,-500.0,0.00019969,2]
[408095403,1773141044944,-500.0,0.00019969,2]
[408095404,1773141044953,-500.0,0.00019969,2]
[408095405,1773141044962,-500.0,0.00019969,2]
[408095406,1773141044971,-357.71717249,0.00019969,2]
[408095407,1773141044980,-500.0,0.00019969,2]
[408095408,1773141044990,-500.0,0.00019969,2]
[408095409,1773141044999,-500.0,0.00019969,2]
[408095410,1773141045008,-240.63091637,0.00019969,2]
[408095411,1773141045017,-500.0,0.00019969,2]
[408095412,1773141045028,-500.0,0.00019969,2]
[408095413,1773141045038,-500.0,0.00019969,2]
[408095414,1773141045047,-500.0,0.00019969,2]
[408095415,1773141045057,-500.0,0.00019969,2]
[408095416,1773141045068,-500.0,0.00019969,2]
[408095417,1773141045078,-500.0,0.00019969,2]
[408095418,1773141045087,-500.0,0.00019969,2]
[408095419,1773141045097,-500.0,0.00019969,2]
[408095420,1773141045107,-500.0,0.00019969,2]
[408095421,1773141045117,-500.0,0.00019969,2]
[408095422,1773141045126,-500.0,0.00019969,2]
[408095423,1773141045136,-500.0,0.00019969,2]
[408095424,1773141045147,-473.56177079,0.00019969,2]
[408095425,1773141045156,-500.0,0.00019969,2]
[408095426,1773141045165,-630.49826481,0.00019969,2]
[408095428,1773141045174,-500.0,0.00019969,2]
[408095429,1773141045183,-275.61647034,0.00019969,2]
[408095430,1773141045192,-500.0,0.00019969,2]
[408095432,1773141045201,-500.0,0.00019969,2]
[408095433,1773141045211,-500.0,0.00019969,2]
[408095434,1773141045221,-500.0,0.00019969,2]
[408095435,1773141045230,-500.0,0.00019969,2]
[408095437,1773141045240,-500.0,0.00019969,2]
[408095439,1773141045250,-500.0,0.00019969,2]
[408095441,1773141045259,-500.0,0.00019969,2]
[408095443,1773141045268,-500.0,0.00019969,2]
[408095445,1773141045277,-500.0,0.00019969,2]
[408095447,1773141045286,-500.0,0.00019969,2]
[408095449,1773141045297,-500.0,0.00019969,2]
[408095451,1773141045307,-500.0,0.00019969,2]
[408095453,1773141045318,-500.0,0.00019969,2]
[408095454,1773141045327,-500.0,0.00019969,2]
[408095455,1773141045336,-500.0,0.00019969,2]
[408095456,1773141045346,-500.0,0.00019969,2]
[408095457,1773141045355,-500.0,0.00019969,2]
[408095458,1773141045365,-500.0,0.00019969,2]
[408095459,1773141045374,-500.0,0.00019969,2]
[408095460,1773141045385,-500.0,0.00019969,2]
[408095461,1773141045394,-500.0,0.00019969,2]
[408095462,1773141045403,-500.0,0.00019969,2]
[408095463,1773141045412,-500.0,0.00019969,2]
[408095464,1773141045421,-500.0,0.00019969,2]
[408095465,1773141045430,-500.0,0.00019969,2]
[408095466,1773141045442,-500.0,0.00019969,2]
[408095467,1773141045452,-545.60025205,0.00019969,2]
[408095468,1773141045462,-500.0,0.00019969,2]
[408095469,1773141045472,-198.85401815,0.00019969,2]
[408095470,1773141045482,-500.0,0.00019969,2]
[408095471,1773141045491,-500.0,0.00019969,2]
[408095472,1773141045502,-500.0,0.00019969,2]
[408095473,1773141045513,-500.0,0.00019969,2]
[408095474,1773141045522,-500.0,0.00019969,2]
[408095475,1773141045531,-500.0,0.00019969,2]
[408095476,1773141045541,-500.0,0.00019969,2]
[408095477,1773141045550,-500.0,0.00019969,2]
[408095478,1773141045559,-500.0,0.00019969,2]
[408095480,1773141045568,-500.0,0.00019969,2]
[408095482,1773141045577,-500.0,0.00019969,2]
[408095484,1773141045586,-500.0,0.00019969,2]
[408095485,1773141045595,-563.12658994,0.00019969,2]
[408095486,1773141045604,-500.0,0.00019969,2]
[408095488,1773141045613,-500.0,0.00019969,2]
[408095489,1773141045622,-500.0,0.00019969,2]
[408095490,1773141045632,-500.0,0.00019969,2]
[408095491,1773141045642,-500.0,0.00019969,2]
[408095492,1773141045651,-500.0,0.00019969,2]
[408095493,1773141045660,-500.0,0.00019969,2]
[408095494,1773141045671,-500.0,0.00019969,2]
[408095495,1773141045682,-500.0,0.00019969,2]
[408095496,1773141045692,-500.0,0.00019969,2]
[408095497,1773141045703,-463.83437253,0.00019969,2]
[408095498,1773141045713,-500.0,0.00019969,2]
[408095499,1773141045722,-500.0,0.00019969,2]
[408095500,1773141045731,-500.0,0.00019969,2]
[408095501,1773141045742,-500.0,0.00019969,2]
[408095502,1773141045754,-581.55292284,0.00019969,2]